bitfinex/quotes_SOLUSD_20220117
["timestamp","ask_amount","ask_price","bid_price","bid_amount"]
[1642429740714,35.0411,143.53,143.44,34.5625]
[1642429741115,35.0411,143.53,143.44,24.1085]
[1642429741313,0.25,143.52,143.44,24.1085]
[1642429742615,10.4571,143.5,143.44,24.1085]
[1642429742813,1.24190763,143.49,143.44,24.1085]
[1642429744015,1.24190763,143.49,143.42,40.28140572]
[1642429744316,1.24190763,143.49,143.42,14.04057236]
[1642429747018,1.24190763,143.49,143.42,20.04057236]
[1642429747418,10.4571,143.5,143.42,20.04057236]
[1642429747619,10.4571,143.5,143.42,14.04057236]
[1642429748521,40.53886161,143.49,143.41,23.3432]
[1642429748720,40.53886161,143.49,143.41,29.3432]
[1642429750222,0.25,143.48,143.41,29.3432]
[1642429750620,10.7086,143.48,143.41,29.3432]
[1642429750820,10.7086,143.48,143.41,23.3432]
[1642429751021,33.6681,143.48,143.41,23.3432]
[1642429754726,33.4181,143.48,143.41,23.3432]
[1642429755328,22.9595,143.48,143.41,23.3432]
[1642429756028,30.08066161,143.49,143.41,23.3432]
[1642429756729,40.53856161,143.49,143.41,23.3432]
[1642429756928,63.73886161,143.49,143.41,23.3432]
[1642429757328,0.25,143.48,143.41,23.3432]
[1642429761740,38.43744039,143.48,143.41,23.3432]
[1642429767555,0.25,143.48,143.41,23.3432]
[1642429769260,0.25,143.48,143.41,33.7996]
[1642429769860,23.2003,143.49,143.41,33.7996]
[1642429770060,23.2003,143.49,143.42,0.25]
[1642429770264,23.2003,143.49,143.42,10.7055]
[1642429772085,23.2003,143.49,143.42,12.63420657]
[1642429772989,23.2003,143.49,143.42,10.7055]
[1642429773186,23.2003,143.49,143.42,80.9455]
[1642429773389,12.43521182,143.52,143.42,80.9455]
[1642429773588,23.6497,143.51,143.43,23.078]
[1642429773788,1.97971182,143.52,143.44,54.07799858]
[1642429773994,1.97971182,143.52,143.44,61.97599858]
[1642429774389,1.97971182,143.52,143.44,132.21599858]
[1642429774792,1.97971182,143.53,143.44,132.21599858]
[1642429775222,1.97971182,143.53,143.45,23.2315]
[1642429775391,1.97971182,143.53,143.46,10.4526]
[1642429775592,1.97971182,143.53,143.46,10.7026]
[1642429775990,24.9074,143.54,143.46,10.7026]
[1642429778695,0.25,143.53,143.46,10.4526]
[1642429778995,24.9074,143.54,143.46,10.4526]
[1642429780702,35.3614,143.54,143.45,23.2315]
[1642429782400,0.25,143.53,143.45,23.2315]
[1642429782600,10.705,143.53,143.45,23.2315]
[1642429784003,10.705,143.53,143.42,1.92870657]
[1642429784203,24.6169,143.52,143.42,1.92870657]
[1642429784403,10.4577,143.49,143.42,1.92870657]
[1642429784904,19.77441119,143.49,143.41,44.6323168]
[1642429785104,19.77441119,143.49,143.41,1.92870657]
[1642429785807,23.3631,143.48,143.4,37.01650657]
[1642429786704,33.8214,143.48,143.4,26.55950657]
[1642429787103,33.8214,143.48,143.4,24.6308]
[1642429789308,10.7091,143.47,143.4,24.6308]
[1642429790110,0.25,143.47,143.4,24.6308]
[1642429792834,0.25,143.47,143.4,35.0881]
[1642429801951,23.3631,143.48,143.4,35.0881]
[1642429802150,33.11581182,143.52,143.4,35.0881]
[1642429802351,24.7363,143.51,143.42,10.4555]
[1642429802552,24.7363,143.51,143.42,19.0485]
[1642429802750,24.7363,143.51,143.43,47.82466671]
[1642429804049,1.97971182,143.53,143.43,118.06466671]
[1642429804254,26.51221182,143.54,143.44,10.4542]
[1642429804450,26.51221182,143.54,143.44,33.9409]
[1642429804652,1.97971182,143.54,143.45,0.25]
[1642429804851,1.97971182,143.54,143.45,5.819]
[1642429805051,1.97971182,143.54,143.47,70.24]
[1642429805253,1.97971182,143.57,143.48,35.35048225]
[1642429805450,1.97971182,143.57,143.49,10.4507]
[1642429806152,37.05721182,143.58,143.49,10.4507]
[1642429807650,37.05721182,143.58,143.48,25.1849]
[1642429809555,37.05721182,143.58,143.53,40.74396322]
[1642429813356,0.25,143.57,143.53,40.74396322]
[1642429814057,10.7019,143.57,143.53,40.74396322]
[1642429814660,10.7019,143.57,143.53,20.36825568]
[1642429814859,10.7019,143.57,143.55,20.37570754]
[1642429815060,10.7019,143.57,143.55,40.74396322]
[1642429815259,6.06439994,143.56,143.55,40.74396322]
[1642429819396,61.31439994,143.56,143.55,40.74396322]
[1642429820397,68.59226531,143.56,143.55,40.74396322]
[1642429820599,13.59226531,143.56,143.55,40.74396322]
[1642429820796,13.34226531,143.56,143.55,40.74396322]
[1642429821396,48.34226531,143.56,143.55,40.74396322]
[1642429822398,48.59226531,143.56,143.55,40.74396322]
[1642429825902,13.34226531,143.56,143.55,40.74396322]
[1642429827205,50.34226531,143.56,143.55,40.74396322]
[1642429829111,52.32197713,143.56,143.55,40.74396322]
[1642429829308,52.57197713,143.56,143.55,40.74396322]
[1642429832216,15.57197713,143.56,143.55,40.74396322]
[1642429833318,52.57197713,143.56,143.55,40.74396322]
[1642429833918,15.57197713,143.56,143.55,40.74396322]
[1642429834416,13.59226531,143.56,143.55,40.74396322]
[1642429834717,13.34226531,143.56,143.55,40.74396322]
[1642429834918,6.06439994,143.56,143.55,40.74396322]
[1642429835342,3.95932468,143.58,143.55,40.74396322]
[1642429835543,1.9847185,143.56,143.55,20.36825568]
[1642429835744,1.9847185,143.56,143.51,22.8586]
[1642429835948,1.9847185,143.56,143.54,20.36825568]
[1642429836546,26.99512468,143.59,143.54,20.36825568]
[1642429836547,1.9847185,143.57,143.54,20.36825568]
[1642429837643,1.9847185,143.58,143.54,20.36825568]
[1642429838845,1.85e-05,143.58,143.55,96.0]
[1642429839044,1.85e-05,143.58,143.55,173.024]
[1642429839243,3.95932468,143.61,143.55,173.024]
[1642429839444,3.95932468,143.63,143.55,173.024]
[1642429839647,3.95932468,143.63,143.55,77.024]
[1642429839845,31.21112311,143.62,143.55,77.024]
[1642429840645,31.21112311,143.62,143.55,87.4704]
[1642429840845,31.21112311,143.62,143.58,20.37570754]
[1642429841045,23.1701,143.65,143.58,28.01970754]
[1642429841250,23.1701,143.65,143.62,20.36825568]
[1642429841447,10.4457,143.66,143.62,20.36825568]
[1642429841846,0.25,143.65,143.62,20.36825568]
[1642429842146,39.15724457,143.65,143.62,20.36825568]
[1642429842646,6.06439994,143.64,143.62,20.36825568]
[1642429844249,3.03219997,143.64,143.62,20.36825568]
[1642429844448,0.25,143.65,143.62,20.36825568]
[1642429844948,6.06439994,143.64,143.62,20.36825568]
[1642429845549,0.25,143.63,143.62,20.36825568]
[1642429846148,0.25,143.63,143.62,40.74396322]
[1642429848156,6.31439994,143.63,143.62,40.74396322]
[1642429849553,36.22308098,143.66,143.62,40.74396322]
[1642429850056,36.22308098,143.66,143.62,20.37570754]
[1642429850255,36.22308098,143.66,143.64,20.36825568]
[1642429850455,6.06439994,143.65,143.64,20.36825568]
[1642429851155,36.22308098,143.66,143.64,20.36825568]
[1642429851556,10.4451,143.67,143.65,20.37570754]
[1642429851758,3.03219997,143.66,143.65,20.37570754]
[1642429852460,31.5174781,143.66,143.65,20.37570754]
[1642429853159,3.28219997,143.66,143.65,20.37570754]
[1642429854960,36.28219997,143.66,143.65,20.37570754]
[1642429855565,36.28219997,143.66,143.65,40.74396322]
[1642429855765,33.25,143.66,143.65,40.74396322]
[1642429859566,36.28219997,143.66,143.65,40.74396322]
[1642429865970,36.03219997,143.66,143.65,40.74396322]
[1642429867872,101.03219997,143.66,143.65,40.74396322]
[1642429868074,108.95778559,143.66,143.65,40.74396322]
[1642429869279,109.20778559,143.66,143.65,40.74396322]
[1642429869777,44.20778559,143.66,143.65,40.74396322]
[1642429870178,40.24846091,143.66,143.65,40.74396322]
[1642429870779,79.99846091,143.66,143.65,40.74396322]
[1642429870980,83.63342918,143.66,143.65,40.74396322]
[1642429871182,87.60170884,143.66,143.65,40.74396322]
[1642429872181,83.63342918,143.66,143.65,40.74396322]
[1642429874083,79.99846091,143.66,143.65,40.74396322]
[1642429874481,80.24846091,143.66,143.65,40.74396322]
[1642429875082,7.24846091,143.66,143.65,40.74396322]
[1642429875583,6.99846091,143.66,143.65,40.74396322]
[1642429876283,3.03219997,143.66,143.65,40.74396322]
[1642429876711,41.03219997,143.66,143.65,40.74396322]
[1642429876913,41.28219997,143.66,143.65,40.74396322]
[1642429881421,2.93695944,143.66,143.65,40.74396322]
[1642429882523,0.25,143.66,143.65,40.74396322]
[1642429883823,3.96754862,143.68,143.65,40.74396322]
[1642429884023,3.96754862,143.68,143.65,20.37570754]
[1642429884325,3.96754862,143.68,143.66,40.74396322]
[1642429884725,0.34966193,143.69,143.66,40.74396322]
[1642429885126,0.34966193,143.69,143.67,0.34524053]
[1642429889529,0.34966193,143.69,143.68,20.36825568]
[1642429889829,0.34966193,143.69,143.68,40.74396322]
[1642429899542,94.06882134,143.69,143.68,40.74396322]
[1642429900446,0.76916981,143.67,143.56,49.171]
[1642429900842,10.07,143.66,143.56,49.171]
[1642429901242,0.25,143.65,143.56,49.171]
[1642429901449,10.6961,143.65,143.56,49.171]
[1642429902249,10.6961,143.65,143.56,24.3422]
[1642429902450,10.6961,143.65,143.49,34.9762]
[1642429902451,80.31,143.64,143.49,34.9762]
[1642429902649,80.31,143.64,143.5,35.107]
[1642429902650,10.4503,143.6,143.5,35.107]
[1642429903074,10.4503,143.6,143.5,24.6571]
[1642429903271,34.25893133,143.59,143.5,70.83033445]
[1642429903671,44.70973133,143.59,143.5,70.83033445]
[1642429903874,10.4508,143.59,143.5,70.83033445]
[1642429904874,39.52275456,143.59,143.5,70.83033445]
[1642429905273,39.52275456,143.59,143.5,24.6571]
[1642429907378,0.25,143.58,143.5,24.6571]
[1642429907578,10.7011,143.58,143.5,24.6571]
[1642429918194,10.4511,143.58,143.5,24.6571]
[1642429921921,0.25,143.57,143.5,24.6571]
[1642429923625,0.25,143.57,143.5,35.1073]
[1642429925427,10.4501,143.6,143.51,0.25]
[1642429925625,0.25,143.59,143.51,0.25]
[1642429926026,10.4501,143.6,143.51,0.25]
[1642429926426,10.4501,143.6,143.51,10.6994]
[1642429927327,0.25,143.59,143.51,10.6994]
[1642429928128,0.25,143.59,143.52,23.3834]
[1642429928328,0.25,143.61,143.53,10.4481]
[1642429928528,0.25,143.61,143.54,39.68029155]
[1642429929532,10.6989,143.61,143.54,39.68029155]
[1642429933438,0.25,143.61,143.54,39.68029155]
[1642429934337,0.25,143.61,143.54,62.70799155]
[1642429934836,10.4484,143.62,143.54,62.70799155]
[1642429935638,28.78834862,143.64,143.54,73.15499155]
[1642429935839,24.8208,143.64,143.54,73.15499155]
[1642429936038,3.96754862,143.65,143.55,70.49]
[1642429936238,3.96754862,143.65,143.56,10.07]
[1642429936438,3.96754862,143.65,143.56,11.5014556]
[1642429936742,3.96754862,143.65,143.57,1.6814556]
[1642429936941,0.34966193,143.69,143.57,9.9574556]
[1642429937140,0.34966193,143.69,143.61,10.4406]
[1642429937340,0.34966193,143.69,143.62,0.25]
[1642429937741,0.34966193,143.69,143.61,11.71584109]
[1642429938143,0.34966193,143.69,143.62,47.74894007]
[1642429938540,0.34966193,143.69,143.63,10.4402]
[1642429943543,0.34966193,143.69,143.63,10.7002]
[1642429943743,0.34966193,143.69,143.63,16.7002]
[1642429944142,0.34966193,143.69,143.65,10.4388]
[1642429944344,0.34966193,143.69,143.65,80.6788]
[1642429944543,0.34966193,143.69,143.65,88.0698]
[1642429947047,0.34966193,143.69,143.66,0.25]
[1642429947347,0.34966193,143.69,143.67,52.80621467]
[1642429947776,0.34966193,143.69,143.67,10.4376]
[1642429948275,0.34966193,143.69,143.68,0.34524053]
[1642429949475,0.34966193,143.69,143.68,6.43824053]
[1642429949677,6.193e-05,143.69,143.68,6.43824053]
[1642429951879,6.193e-05,143.69,143.68,57.43824053]
[1642429952179,6.193e-05,143.69,143.68,127.67824053]
[1642429953580,6.193e-05,143.69,143.68,127.92824053]
[1642429956283,6.193e-05,143.69,143.68,76.92824053]
[1642429956481,6.193e-05,143.69,143.68,70.83524053]
[1642429957785,6.193e-05,143.69,143.68,70.58524053]
[1642429958888,6.193e-05,143.69,143.68,70.83524053]
[1642429959490,6.193e-05,143.69,143.68,0.34524053]
[1642429962792,6.193e-05,143.69,143.68,70.58524053]
[1642429964791,6.193e-05,143.69,143.68,70.83524053]
[1642429965792,6.193e-05,143.69,143.68,70.58524053]
[1642429966532,6.193e-05,143.69,143.68,70.83524053]
[1642429969297,6.193e-05,143.69,143.68,77.09524053]
[1642429969696,6.193e-05,143.69,143.68,76.84524053]
[1642429969899,6.193e-05,143.69,143.68,76.58524053]
[1642429970098,6.193e-05,143.69,143.68,70.58524053]
[1642429971198,6.193e-05,143.69,143.68,0.34524053]
[1642429971601,6.193e-05,143.69,143.68,35.34524053]
[1642429972400,6.193e-05,143.69,143.68,0.34524053]
[1642429976130,6.193e-05,143.69,143.68,70.58524053]
[1642429978232,6.193e-05,143.69,143.68,0.34524053]
[1642429978631,37.00006193,143.69,143.68,0.34524053]
[1642429978832,42.96922134,143.69,143.63,1.85108178]
[1642429979032,42.71922134,143.69,143.63,1.85108178]
[1642429979235,2.31716905,143.68,143.63,1.85108178]
[1642429979538,6.193e-05,143.69,143.64,1.4314556]
[1642429979734,6.193e-05,143.69,143.65,70.24]
[1642429979933,6.193e-05,143.69,143.64,25.0849556]
[1642429980133,6.193e-05,143.69,143.66,1.4314556]
[1642429980533,6.193e-05,143.69,143.67,0.25]
[1642429980934,6.193e-05,143.69,143.67,80.9277]
[1642429981136,6.193e-05,143.69,143.68,36.34524053]
[1642429981634,6.193e-05,143.69,143.68,75.77669613]
[1642429981834,6.193e-05,143.69,143.68,146.27669613]
[1642429983036,6.193e-05,143.69,143.68,146.52669613]
[1642429984541,6.193e-05,143.69,143.68,108.52669613]
[1642429984738,6.193e-05,143.69,143.68,108.01669613]
[1642429985742,6.193e-05,143.69,143.68,37.77669613]
[1642429985940,6.193e-05,143.69,143.68,61.20119613]
[1642429986540,6.193e-05,143.69,143.68,131.44119613]
[1642429986943,6.193e-05,143.69,143.68,131.69119613]
[1642429987145,6.193e-05,143.69,143.68,131.44119613]
[1642429989044,6.193e-05,143.69,143.68,131.69119613]
[1642429989444,6.193e-05,143.69,143.68,166.73269613]
[1642429989647,6.193e-05,143.69,143.68,172.73269613]
[1642429989944,6.193e-05,143.69,143.68,166.73269613]
[1642429990545,6.193e-05,143.69,143.68,172.47269613]
[1642429991047,6.193e-05,143.69,143.68,166.47269613]
[1642429995351,6.193e-05,143.69,143.68,172.73269613]
[1642429996152,1.96499724,143.77,143.68,172.73269613]
[1642429996354,1.96499724,143.77,143.69,158.25]
[1642429996552,1.96499724,143.77,143.72,70.24]
[1642429996753,1.96499724,143.77,143.73,10.32]
[1642429997153,1.96499724,143.77,143.73,18.01431979]
[1642429997354,2.08533807,143.81,143.74,1.43431979]
[1642429997553,2.08533807,143.81,143.76,10.4294]
[1642429997761,2.08533807,143.81,143.77,0.25]
[1642429998760,0.12034083,143.81,143.77,0.25]
[1642429998956,0.12034083,143.81,143.76,70.49]
[1642429999557,0.12034083,143.81,143.77,10.4301]
[1642430000160,0.12034083,143.81,143.78,0.25]
[1642430000858,0.12034083,143.81,143.77,15.83]
[1642430001062,0.12034083,143.81,143.78,70.24]
[1642430001258,0.12034083,143.81,143.79,37.4516622]
[1642430001659,0.12034083,143.81,143.79,118.1192622]
[1642430002059,0.12034083,143.81,143.79,10.4276]
[1642430002361,0.12034083,143.81,143.77,32.6494]
[1642430002558,0.12034083,143.81,143.77,10.07]
[1642430002965,0.12034083,143.81,143.77,20.5001]
[1642430003763,0.12034083,143.81,143.78,0.25]
[1642430003965,0.12034083,143.81,143.78,10.6795]
[1642430005770,0.12034083,143.81,143.78,10.4295]
[1642430006969,0.12034083,143.81,143.77,10.07]
[1642430007168,0.12034083,143.81,143.76,10.4308]
[1642430007368,0.12034083,143.81,143.73,57.931]
[1642430007570,0.12034083,143.81,143.73,47.6247]
[1642430008700,0.12034083,143.81,143.74,10.4323]
[1642430009303,0.12034083,143.81,143.73,47.6247]
[1642430009705,0.12034083,143.81,143.72,80.31]
[1642430010504,10.55464083,143.81,143.72,90.7437]
[1642430010708,10.55464083,143.81,143.72,96.7437]
[1642430010909,33.96810003,143.8,143.72,96.7437]
[1642430014608,33.96810003,143.8,143.72,98.17801979]
[1642430014813,33.96810003,143.8,143.73,0.25]
[1642430015008,33.96810003,143.8,143.73,10.6834]
[1642430015210,33.96810003,143.8,143.73,10.4334]
[1642430016309,33.96810003,143.8,143.73,20.5034]
[1642430016510,33.71810003,143.8,143.73,20.5034]
[1642430016711,0.25,143.79,143.73,20.5034]
[1642430017911,0.25,143.79,143.73,59.77998998]
[1642430018112,0.37034083,143.81,143.73,82.83298998]
[1642430018311,0.12034083,143.81,143.74,71.67431979]
[1642430018515,0.12034083,143.81,143.76,10.4304]
[1642430025423,0.12034083,143.81,143.75,24.8752]
[1642430026225,0.12034083,143.81,143.74,10.4322]
[1642430026424,0.12034083,143.81,143.73,80.31]
[1642430026655,0.12034083,143.81,143.73,86.31]
[1642430027351,0.12034083,143.81,143.73,16.07]
[1642430028053,0.12034083,143.81,143.73,10.07]
[1642430028653,10.55454083,143.81,143.73,10.07]
[1642430028952,0.25,143.8,143.73,10.07]
[1642430029354,7.762,143.8,143.7,80.6753]
[1642430029752,24.5351,143.79,143.7,80.6753]
[1642430029954,14.33512874,143.78,143.7,80.6753]
[1642430030153,14.58512874,143.78,143.7,80.6753]
[1642430032055,14.58512874,143.78,143.7,82.10961979]
[1642430032658,14.58512874,143.78,143.7,80.6753]
[1642430035361,4.14862874,143.78,143.7,80.6753]
[1642430035960,4.14862874,143.78,143.7,82.10961979]
[1642430037061,4.14862874,143.78,143.7,80.6753]
[1642430040064,4.14862874,143.78,143.7,82.10961979]
[1642430040567,4.14862874,143.78,143.7,80.6753]
[1642430042168,4.14862874,143.78,143.71,0.25]
[1642430042466,4.14862874,143.78,143.71,10.6844]
[1642430047073,4.14862874,143.78,143.71,10.4344]
[1642430049274,4.14862874,143.78,143.69,103.529]
[1642430049474,22.797,143.77,143.67,11.50431979]
[1642430049680,22.797,143.77,143.65,38.07450157]
[1642430049877,0.25,143.76,143.65,1.85108178]
[1642430050275,33.64256636,143.73,143.65,1.85108178]
[1642430050475,23.2743,143.72,143.65,12.28988178]
[1642430050675,23.5243,143.72,143.65,12.28988178]
[1642430051076,23.5243,143.72,143.65,80.6788]
[1642430051278,23.5243,143.72,143.65,82.11311979]
[1642430051677,35.67919724,143.76,143.65,82.11311979]
[1642430051878,23.1858,143.75,143.67,70.24]
[1642430052077,23.1858,143.75,143.68,10.4367]
[1642430052279,23.1858,143.75,143.68,10.6867]
[1642430052477,0.12034083,143.72,143.68,10.6867]
[1642430053078,22.47199724,143.77,143.68,80.9267]
[1642430053277,12.03499724,143.77,143.68,104.6114]
[1642430053480,1.96499724,143.77,143.68,106.04571979]
[1642430053679,1.96499724,143.77,143.68,112.04571979]
[1642430054280,0.25,143.76,143.68,116.11571979]
[1642430054880,0.25,143.76,143.68,45.87571979]
[1642430055080,0.25,143.76,143.68,44.4414]
[1642430055981,0.25,143.76,143.68,45.87571979]
[1642430057482,24.65889724,143.77,143.68,45.87571979]
[1642430058385,22.6939,143.77,143.68,45.87571979]
[1642430058684,22.6939,143.77,143.68,116.11571979]
[1642430058883,22.6939,143.77,143.68,123.49271979]
[1642430059086,1.96499724,143.78,143.68,123.49271979]
[1642430059087,1.96499724,143.78,143.68,129.49271979]
[1642430060314,23.5484,143.8,143.68,131.34380157]
[1642430060315,1.96499724,143.79,143.68,131.34380157]
[1642430061293,25.51339724,143.8,143.69,1.85108178]
[1642430061489,25.51339724,143.8,143.72,10.4339]
[1642430061689,25.51339724,143.8,143.72,59.90737814]
[1642430062091,0.25,143.79,143.72,59.90737814]
[1642430063794,0.25,143.79,143.72,10.4339]
[1642430069225,0.25,143.79,143.73,0.25]
[1642430069825,0.25,143.79,143.72,10.4339]
[1642430072529,0.25,143.79,143.72,20.5039]
[1642430074730,0.25,143.79,143.72,10.4339]
[1642430076130,0.25,143.79,143.71,24.7913]
[1642430076332,0.25,143.79,143.71,34.8613]
[1642430077532,0.25,143.79,143.71,45.2962]
[1642430079836,10.6858,143.79,143.71,34.8613]
[1642430080235,10.6858,143.79,143.71,10.07]
[1642430080536,22.5047,143.78,143.71,10.07]
[1642430080937,0.25,143.77,143.71,10.07]
[1642430081137,0.25,143.77,143.68,26.40618178]
[1642430081337,0.25,143.77,143.68,1.85108178]
[1642430081543,10.6876,143.77,143.68,1.85108178]
[1642430081744,1.71682572,143.76,143.67,45.3968]
[1642430081943,24.85302572,143.76,143.67,45.3968]
[1642430082243,0.25,143.75,143.67,51.3968]
[1642430082945,0.25,143.75,143.67,45.3968]
[1642430083847,0.25,143.75,143.67,34.9594]
[1642430084344,0.25,143.75,143.67,10.07]
[1642430084545,10.6886,143.75,143.66,1.85108178]
[1642430084745,23.855,143.74,143.66,1.85108178]
[1642430085247,0.25,143.73,143.64,1.85108178]
[1642430086050,0.25,143.73,143.64,26.10608178]
[1642430086591,10.6906,143.73,143.64,26.10608178]
[1642430086791,22.5129,143.72,143.64,24.255]
[1642430086990,27.89415166,143.71,143.64,24.255]
[1642430087189,28.14415166,143.71,143.64,24.255]
[1642430090190,38.58585166,143.71,143.62,11.50431979]
[1642430090393,38.58585166,143.71,143.61,1.85108178]
[1642430090589,23.0461,143.7,143.61,1.85108178]
[1642430090789,0.25,143.69,143.61,1.85108178]
[1642430091192,0.25,143.69,143.6,1.85108178]
[1642430091391,10.07,143.68,143.6,1.85108178]
[1642430091592,37.0,143.64,143.56,3.85283151]
[1642430091793,21.59051948,143.66,143.56,3.85283151]
[1642430091991,0.25,143.63,143.56,3.85283151]
[1642430092992,10.4498,143.62,143.56,3.85283151]
[1642430093394,0.25,143.61,143.56,3.85283151]
[1642430093593,0.25,143.61,143.52,5.2871513]
[1642430093793,23.2853,143.61,143.52,5.2871513]
[1642430094193,27.89415166,143.6,143.52,5.2871513]
[1642430094396,0.25,143.59,143.52,5.2871513]
[1642430094995,0.25,143.59,143.52,1.43431979]
[1642430095696,0.25,143.6,143.52,1.43431979]
[1642430095896,0.25,143.6,143.52,0.93431979]
[1642430096097,0.25,143.6,143.53,0.25]
[1642430096299,0.25,143.6,143.53,10.698]
[1642430096496,0.25,143.6,143.53,12.13231979]
[1642430096698,0.25,143.6,143.53,10.698]
[1642430096899,0.25,143.6,143.53,12.13231979]
[1642430098500,0.25,143.6,143.53,11.88231979]
[1642430099703,0.25,143.6,143.53,10.448]
[1642430100407,34.3603,143.64,143.53,11.88105998]
[1642430100600,44.8077,143.64,143.55,10.4463]
[1642430100802,34.7377,143.64,143.55,10.4463]
[1642430101202,71.07271349,143.64,143.55,10.4463]
[1642430101404,71.07271349,143.64,143.53,11.50305998]
[1642430101608,23.2933,143.63,143.53,11.50305998]
[1642430101805,33.9912,143.63,143.53,21.95075998]
[1642430102703,10.4479,143.63,143.53,21.95075998]
[1642430102904,10.4479,143.63,143.54,0.25]
[1642430103105,10.4479,143.63,143.54,10.32]
[1642430103305,10.4479,143.63,143.52,22.7115]
[1642430103705,10.4479,143.63,143.53,0.25]
[1642430104107,24.1676,143.62,143.53,0.25]
[1642430104511,34.6167,143.62,143.53,0.25]
[1642430105009,24.1676,143.62,143.53,0.25]
[1642430105928,24.1676,143.62,143.53,10.6976]
[1642430106530,24.1676,143.62,143.53,10.4476]
[1642430108933,24.1676,143.62,143.54,10.6972]
[1642430109935,24.1676,143.62,143.54,27.0452]
[1642430110133,0.25,143.62,143.55,70.24]
[1642430110334,0.25,143.63,143.55,104.8529]
[1642430110534,0.25,143.63,143.55,34.6129]
[1642430111936,0.25,143.63,143.56,10.07]
[1642430112136,0.25,143.63,143.56,20.5156]
[1642430114037,24.9822,143.64,143.57,44.15539529]
[1642430114536,24.9822,143.64,143.56,10.4456]
[1642430115336,0.25,143.63,143.56,10.4456]
[1642430115737,39.48459522,143.63,143.56,10.4456]
[1642430116440,39.48459522,143.63,143.55,24.1665]
[1642430117445,39.48459522,143.63,143.55,72.50349955]
[1642430118243,39.48459522,143.63,143.52,1.43305998]
[1642430118443,35.015,143.62,143.52,3.85283151]
[1642430118643,70.24,143.61,143.52,3.85283151]
[1642430118842,10.07,143.6,143.52,3.85283151]
[1642430119043,70.24,143.59,143.52,3.85283151]
[1642430119245,80.31,143.58,143.52,3.85283151]
[1642430119443,10.4543,143.55,143.45,5.80286498]
[1642430119643,10.4543,143.55,143.42,33.1142]
[1642430119843,24.7752,143.54,143.42,39.1142]
[1642430120049,24.7752,143.54,143.43,10.4548]
[1642430120246,24.7752,143.54,143.43,16.4548]
[1642430120446,24.7752,143.54,143.44,38.95418035]
[1642430120649,35.2289,143.54,143.44,49.02418035]
[1642430121049,35.2289,143.54,143.44,71.62208035]
[1642430121651,24.7752,143.54,143.46,10.4527]
[1642430122249,0.25,143.54,143.46,10.4527]
[1642430122653,0.25,143.55,143.46,10.4527]
[1642430123751,22.9326,143.55,143.46,10.4527]
[1642430124551,33.3856,143.55,143.46,10.4527]
[1642430126054,33.3856,143.55,143.44,72.00618035]
[1642430126253,33.3856,143.55,143.45,0.25]
[1642430126652,33.1356,143.55,143.45,0.25]
[1642430127555,22.6826,143.55,143.46,10.4528]
[1642430127758,0.25,143.54,143.46,10.4528]
[1642430130958,10.7036,143.54,143.46,10.4528]
[1642430131784,10.7036,143.54,143.41,22.8199]
[1642430131785,12.45979958,143.54,143.41,22.8199]
[1642430131984,10.456,143.51,143.41,22.8199]
[1642430132385,0.25,143.5,143.41,22.8199]
[1642430132785,0.25,143.5,143.42,38.96590537]
[1642430132987,0.25,143.5,143.42,39.21590537]
[1642430133585,0.25,143.5,143.42,49.67140537]
[1642430137491,0.25,143.5,143.43,24.2181]
[1642430137692,0.25,143.52,143.45,10.4535]
[1642430141099,0.25,143.52,143.43,34.6729]
[1642430141297,10.7051,143.52,143.44,0.25]
[1642430141897,24.7222,143.51,143.44,0.25]
[1642430142297,0.25,143.5,143.44,0.25]
[1642430145709,0.25,143.5,143.43,34.6729]
[1642430148006,0.25,143.5,143.44,0.25]
[1642430148209,0.25,143.5,143.44,10.7043]
[1642430148707,0.25,143.5,143.44,10.4543]
[1642430163244,0.25,143.5,143.43,24.2181]
[1642430163442,5.976,143.5,143.43,24.2181]
[1642430163645,16.046,143.5,143.4,28.72666498]
[1642430164245,16.046,143.5,143.41,37.88256734]
[1642430164453,23.3594,143.49,143.42,24.1728]
[1642430164846,0.25,143.48,143.42,24.1728]
[1642430167249,0.25,143.48,143.39,10.4579]
[1642430167449,0.25,143.48,143.38,24.2303]